[Event "Titled Tuesday Blitz February 22 Late 2022"]
[White "Pichot, Alan"]
[Black "Sargsyan, Anna M."]
[WhiteFideId "110973"]
[BlackFideId "13308130"]
[WhiteElo "2543"]
[BlackElo "2271"]
[Result "1-0"]
[Round "02"]
[TimeControl "180+1"]
[Date "2022.02.22"]
[WhiteClock "0:00:34"]
[BlackClock "0:00:04"]

1. e4 {[%clk 0:03:00]}  e5 {[%clk 0:02:51]} 2. Nf3 {[%clk 0:02:59]}  Nc6 {[%clk 0:02:50]} 3. Bb5 {[%clk 0:02:55]}  a6 {[%clk 0:02:50]} 4. Ba4 {[%clk 0:02:55]}  Nf6 {[%clk 0:02:51]} 5. O-O {[%clk 0:02:54]}  Nxe4 {[%clk 0:02:51]} 6. d4 {[%clk 0:02:51]}  b5 {[%clk 0:02:50]} 7. Bb3 {[%clk 0:02:51]}  d5 {[%clk 0:02:51]} 8. dxe5 {[%clk 0:02:51]}  Be6 {[%clk 0:02:51]} 9. Nbd2 {[%clk 0:02:49]}  Be7 {[%clk 0:02:50]} 10. c3 {[%clk 0:02:48]}  O-O {[%clk 0:02:49]} 11. Bc2 {[%clk 0:02:47]}  f5 {[%clk 0:02:49]} 12. Nb3 {[%clk 0:02:45]}  Qd7 {[%clk 0:02:49]} 13. Nfd4 {[%clk 0:02:44]}  Nxd4 {[%clk 0:02:50]} 14. Nxd4 {[%clk 0:02:45]}  c5 {[%clk 0:02:51]} 15. Ne2 {[%clk 0:02:31]}  Rad8 {[%clk 0:02:41]} 16. a4 {[%clk 0:02:26]}  d4 {[%clk 0:02:37]} 17. cxd4 {[%clk 0:02:23]}  cxd4 {[%clk 0:02:38]} 18. Nf4 {[%clk 0:01:58]}  Bc4 {[%clk 0:02:23]} 19. Bd3 {[%clk 0:01:52]}  Nc5 {[%clk 0:02:15]} 20. Bxc4+ {[%clk 0:01:40]}  bxc4 {[%clk 0:02:16]} 21. Qc2 {[%clk 0:01:41]}  c3 {[%clk 0:01:58]} 22. bxc3 {[%clk 0:01:37]}  d3 {[%clk 0:01:59]} 23. Qa2+ {[%clk 0:01:37]}  Kh8 {[%clk 0:01:59]} 24. Be3 {[%clk 0:01:37]}  Ne4 {[%clk 0:01:43]} 25. Ne6 {[%clk 0:01:27]}  Nxc3 {[%clk 0:01:37]} 26. Nxf8 {[%clk 0:01:27]}  Bxf8 {[%clk 0:01:34]} 27. Qc4 {[%clk 0:01:22]}  Rc8 {[%clk 0:01:28]} 28. Qxa6 {[%clk 0:01:19]}  Rc6 {[%clk 0:01:20]} 29. Qa8 {[%clk 0:01:14]}  Rc8 {[%clk 0:01:21]} 30. Qa6 {[%clk 0:00:58]}  Rc6 {[%clk 0:01:20]} 31. Qa5 {[%clk 0:00:58]}  d2 {[%clk 0:01:03]} 32. e6 {[%clk 0:00:58]}  Qd6 {[%clk 0:00:37]} 33. e7 {[%clk 0:00:50]}  Bxe7 {[%clk 0:00:26]} 34. Bxd2 {[%clk 0:00:42]}  Ne2+ {[%clk 0:00:05]} 35. Kh1 {[%clk 0:00:42]}  Bd8 {[%clk 0:00:05]} 36. Qb4 {[%clk 0:00:39]}  Rc5 {[%clk 0:00:04]} 37. Be3 {[%clk 0:00:35]}  Rd5 {[%clk 0:00:02]} 38. Qxd6 {[%clk 0:00:35]}  Rxd6 {[%clk 0:00:02]} 39. Rfd1 {[%clk 0:00:35]}  Rxd1+ {[%clk 0:00:03]} 40. Rxd1 {[%clk 0:00:34]}  Ba5 {[%clk 0:00:04]} 1-0


[Site "https://www.chess.com"]

[Event "Titled Tuesday Blitz February 22 Late 2022"]
[White "Pinheiro, Iung Alicio de O."]
[Black "Mickiewicz, Piotr"]
[WhiteFideId "2104350"]
[BlackFideId "1114891"]
[WhiteElo "2608"]
[BlackElo "2266"]
[Result "0-1"]
[Round "02"]
[TimeControl "180+1"]
[Date "2022.02.23"]
[WhiteClock "0:00:08"]
[BlackClock "0:00:04"]

1. e4 {[%clk 0:02:59]}  c5 {[%clk 0:02:58]} 2. Nf3 {[%clk 0:02:59]}  e6 {[%clk 0:02:59]} 3. c3 {[%clk 0:02:59]}  Nf6 {[%clk 0:02:58]} 4. e5 {[%clk 0:02:57]}  Nd5 {[%clk 0:02:58]} 5. Bc4 {[%clk 0:02:52]}  d6 {[%clk 0:02:57]} 6. Qe2 {[%clk 0:02:52]}  Be7 {[%clk 0:02:52]} 7. d4 {[%clk 0:02:51]}  cxd4 {[%clk 0:02:51]} 8. cxd4 {[%clk 0:02:51]}  O-O {[%clk 0:02:50]} 9. O-O {[%clk 0:02:50]}  Nc6 {[%clk 0:02:50]} 10. a3 {[%clk 0:02:46]}  Bd7 {[%clk 0:02:43]} 11. Bd2 {[%clk 0:02:34]}  Rc8 {[%clk 0:02:42]} 12. Nc3 {[%clk 0:02:32]}  Nxc3 {[%clk 0:02:21]} 13. Bxc3 {[%clk 0:02:33]}  Na5 {[%clk 0:02:15]} 14. Bd3 {[%clk 0:02:32]}  Bc6 {[%clk 0:02:09]} 15. Rad1 {[%clk 0:02:23]}  Bd5 {[%clk 0:02:07]} 16. Bb1 {[%clk 0:02:12]}  Nc4 {[%clk 0:01:44]} 17. Rfe1 {[%clk 0:01:52]}  Nxa3 {[%clk 0:01:35]} 18. Bd3 {[%clk 0:01:24]}  Nc4 {[%clk 0:01:31]} 19. h4 {[%clk 0:01:23]}  Bxh4 {[%clk 0:01:24]} 20. g3 {[%clk 0:01:05]}  Be7 {[%clk 0:01:20]} 21. Kg2 {[%clk 0:01:05]}  f5 {[%clk 0:01:02]} 22. exf6 {[%clk 0:01:00]}  Rxf6 {[%clk 0:01:01]} 23. Be4 {[%clk 0:01:00]}  Bxe4 {[%clk 0:00:58]} 24. Qxe4 {[%clk 0:01:01]}  d5 {[%clk 0:00:58]} 25. Qg4 {[%clk 0:00:58]}  Qf8 {[%clk 0:00:50]} 26. Re2 {[%clk 0:00:54]}  Rf5 {[%clk 0:00:45]} 27. Ng1 {[%clk 0:00:32]}  Qf7 {[%clk 0:00:44]} 28. f4 {[%clk 0:00:31]}  h5 {[%clk 0:00:39]} 29. Qh3 {[%clk 0:00:30]}  g5 {[%clk 0:00:39]} 30. Rde1 {[%clk 0:00:23]}  gxf4 {[%clk 0:00:33]} 31. Rxe6 {[%clk 0:00:23]}  f3+ {[%clk 0:00:28]} 32. Nxf3 {[%clk 0:00:21]}  Bd6 {[%clk 0:00:12]} 33. Nh4 {[%clk 0:00:07]}  Rf2+ {[%clk 0:00:10]} 34. Kg1 {[%clk 0:00:08]}  Rf8 {[%clk 0:00:10]} 35. Rg6+ {[%clk 0:00:08]}  Kh7 {[%clk 0:00:10]} 36. Rg5 {[%clk 0:00:07]}  Rc2 {[%clk 0:00:05]} 37. Nf3 {[%clk 0:00:07]}  Qxf3 {[%clk 0:00:04]} 38. Rxh5+ {[%clk 0:00:07]}  Kg6 {[%clk 0:00:05]} 39. Rh6+ {[%clk 0:00:07]}  Kg7 {[%clk 0:00:04]} 40. Rh7+ {[%clk 0:00:08]}  Kf6 {[%clk 0:00:05]} 41. Qh6+ {[%clk 0:00:08]}  Kf5 {[%clk 0:00:04]} 42. Rf1 {[%clk 0:00:08]}  Rg2+ {[%clk 0:00:03]} 43. Kh1 {[%clk 0:00:08]}  Qxf1# {[%clk 0:00:04]} 0-1


[Site "https://www.chess.com"]

[Event "Titled Tuesday Blitz February 22 Late 2022"]
[White "Polanco Nunez, Yoel Estarling"]
[Black "Yang, Kaiqi"]
[WhiteFideId "6401783"]
[BlackFideId "8604398"]
[WhiteElo "2132"]
[BlackElo "2373"]
[Result "0-1"]
[Round "02"]
[TimeControl "180+1"]
[Date "2022.02.23"]
[WhiteClock "0:00:47"]
[BlackClock "0:00:34"]

1. Nf3 {[%clk 0:03:00]}  Nf6 {[%clk 0:02:59]} 2. d4 {[%clk 0:02:59]}  g6 {[%clk 0:02:59]} 3. c4 {[%clk 0:02:58]}  Bg7 {[%clk 0:03:00]} 4. Nc3 {[%clk 0:02:59]}  O-O {[%clk 0:02:59]} 5. e4 {[%clk 0:02:59]}  d6 {[%clk 0:03:00]} 6. Be2 {[%clk 0:02:59]}  Na6 {[%clk 0:02:59]} 7. O-O {[%clk 0:03:00]}  e5 {[%clk 0:02:59]} 8. Be3 {[%clk 0:03:00]}  Ng4 {[%clk 0:02:58]} 9. Bg5 {[%clk 0:03:00]}  f6 {[%clk 0:02:58]} 10. Bh4 {[%clk 0:02:57]}  Nh6 {[%clk 0:02:53]} 11. dxe5 {[%clk 0:02:57]}  dxe5 {[%clk 0:02:53]} 12. Qd5+ {[%clk 0:02:58]}  Nf7 {[%clk 0:02:44]} 13. Rfd1 {[%clk 0:02:49]}  Qe8 {[%clk 0:02:40]} 14. Qd2 {[%clk 0:02:40]}  c6 {[%clk 0:02:38]} 15. a3 {[%clk 0:02:39]}  Nc5 {[%clk 0:02:32]} 16. Qc2 {[%clk 0:02:37]}  Bg4 {[%clk 0:02:23]} 17. h3 {[%clk 0:02:30]}  Bxf3 {[%clk 0:02:22]} 18. Bxf3 {[%clk 0:02:31]}  Ne6 {[%clk 0:02:20]} 19. Ne2 {[%clk 0:02:31]}  h5 {[%clk 0:01:55]} 20. b4 {[%clk 0:02:26]}  Qe7 {[%clk 0:01:42]} 21. Qb2 {[%clk 0:02:20]}  Rfd8 {[%clk 0:01:35]} 22. Qc3 {[%clk 0:01:55]}  Bh6 {[%clk 0:01:26]} 23. c5 {[%clk 0:01:53]}  Kg7 {[%clk 0:01:24]} 24. Qc4 {[%clk 0:01:41]}  Bg5 {[%clk 0:01:09]} 25. Bg3 {[%clk 0:01:39]}  Bd2 {[%clk 0:01:06]} 26. h4 {[%clk 0:01:37]}  Rd7 {[%clk 0:01:02]} 27. Ra2 {[%clk 0:01:36]}  Rad8 {[%clk 0:01:02]} 28. Qc2 {[%clk 0:01:28]}  Bh6 {[%clk 0:00:55]} 29. Rxd7 {[%clk 0:01:24]}  Rxd7 {[%clk 0:00:52]} 30. Nc3 {[%clk 0:01:02]}  Nd4 {[%clk 0:00:52]} 31. Qd3 {[%clk 0:01:02]}  Qd8 {[%clk 0:00:40]} 32. Kh2 {[%clk 0:01:01]}  Nxf3+ {[%clk 0:00:38]} 33. Qxf3 {[%clk 0:01:00]}  Rd3 {[%clk 0:00:38]} 34. Qe2 {[%clk 0:00:50]}  Rxc3 {[%clk 0:00:38]} 35. f4 {[%clk 0:00:47]}  Bxf4 {[%clk 0:00:34]} 0-1


[Site "https://www.chess.com"]

[Event "Titled Tuesday Blitz February 22 Late 2022"]
[White "Ponkratov, Pavel"]
[Black "Salimova, Nurgyul"]
[WhiteFideId "4157800"]
[BlackFideId "2915138"]
[WhiteElo "2487"]
[BlackElo "2185"]
[Result "1/2-1/2"]
[Round "02"]
[TimeControl "180+1"]
[Date "2022.02.22"]
[WhiteClock "0:01:05"]
[BlackClock "0:00:08"]

1. d4 {[%clk 0:03:00]}  Nf6 {[%clk 0:02:59]} 2. c4 {[%clk 0:03:01]}  e6 {[%clk 0:02:58]} 3. Nc3 {[%clk 0:03:02]}  Bb4 {[%clk 0:02:58]} 4. Qa4 {[%clk 0:03:01]}  c5 {[%clk 0:02:50]} 5. a3 {[%clk 0:02:59]}  Bxc3+ {[%clk 0:02:49]} 6. bxc3 {[%clk 0:03:00]}  O-O {[%clk 0:02:49]} 7. Bg5 {[%clk 0:02:56]}  d6 {[%clk 0:02:43]} 8. f3 {[%clk 0:02:52]}  Nc6 {[%clk 0:02:40]} 9. Rd1 {[%clk 0:02:51]}  cxd4 {[%clk 0:02:27]} 10. cxd4 {[%clk 0:02:50]}  Bd7 {[%clk 0:02:28]} 11. Qb3 {[%clk 0:02:43]}  Qa5+ {[%clk 0:02:25]} 12. Bd2 {[%clk 0:02:42]}  Nxd4 {[%clk 0:02:21]} 13. Qd3 {[%clk 0:02:39]}  Qb6 {[%clk 0:02:02]} 14. Be3 {[%clk 0:02:39]}  e5 {[%clk 0:02:02]} 15. Bxd4 {[%clk 0:02:39]}  exd4 {[%clk 0:02:00]} 16. Qxd4 {[%clk 0:02:40]}  Qa5+ {[%clk 0:01:59]} 17. Kf2 {[%clk 0:02:40]}  Qxa3 {[%clk 0:01:55]} 18. g4 {[%clk 0:02:40]}  Be6 {[%clk 0:01:42]} 19. g5 {[%clk 0:02:30]}  Nd7 {[%clk 0:01:42]} 20. Bh3 {[%clk 0:02:30]}  Nc5 {[%clk 0:01:34]} 21. Qxd6 {[%clk 0:02:24]}  Bxc4 {[%clk 0:01:20]} 22. Bf5 {[%clk 0:02:18]}  g6 {[%clk 0:01:18]} 23. Bb1 {[%clk 0:02:14]}  Rad8 {[%clk 0:01:11]} 24. Qxd8 {[%clk 0:02:13]}  Rxd8 {[%clk 0:01:12]} 25. Rxd8+ {[%clk 0:02:14]}  Kg7 {[%clk 0:01:13]} 26. h4 {[%clk 0:02:12]}  Ne6 {[%clk 0:01:09]} 27. Rc8 {[%clk 0:02:11]}  b5 {[%clk 0:01:03]} 28. h5 {[%clk 0:02:07]}  Nxg5 {[%clk 0:00:59]} 29. h6+ {[%clk 0:02:06]}  Kf6 {[%clk 0:00:59]} 30. Rc6+ {[%clk 0:02:02]}  Ne6 {[%clk 0:00:53]} 31. Rh4 {[%clk 0:02:00]}  Qb2 {[%clk 0:00:46]} 32. Be4 {[%clk 0:01:50]}  a5 {[%clk 0:00:43]} 33. Ra6 {[%clk 0:01:50]}  a4 {[%clk 0:00:43]} 34. Rf4+ {[%clk 0:01:49]}  Ke5 {[%clk 0:00:34]} 35. Rxf7 {[%clk 0:01:49]}  b4 {[%clk 0:00:29]} 36. Ra5+ {[%clk 0:01:46]}  Kd6 {[%clk 0:00:26]} 37. Rxh7 {[%clk 0:01:44]}  Qd4+ {[%clk 0:00:25]} 38. Kg2 {[%clk 0:01:38]}  Nf4+ {[%clk 0:00:25]} 39. Kg3 {[%clk 0:01:38]}  Qxg1+ {[%clk 0:00:22]} 40. Kxf4 {[%clk 0:01:39]}  g5+ {[%clk 0:00:19]} 41. Kf5 {[%clk 0:01:38]}  Qd4 {[%clk 0:00:17]} 42. Rb7 {[%clk 0:01:32]}  Be6+ {[%clk 0:00:15]} 43. Kg6 {[%clk 0:01:33]}  g4 {[%clk 0:00:13]} 44. Ra6+ {[%clk 0:01:32]}  Ke5 {[%clk 0:00:12]} 45. Rb5+ {[%clk 0:01:31]}  Kf4 {[%clk 0:00:12]} 46. Rxe6 {[%clk 0:01:31]}  g3 {[%clk 0:00:12]} 47. Rf6+ {[%clk 0:01:31]}  Ke3 {[%clk 0:00:12]} 48. h7 {[%clk 0:01:32]}  g2 {[%clk 0:00:12]} 49. Rg5 {[%clk 0:01:32]}  Qd8 {[%clk 0:00:08]} 50. Rxg2 {[%clk 0:01:26]}  a3 {[%clk 0:00:08]} 51. Kg7 {[%clk 0:01:24]}  a2 {[%clk 0:00:08]} 52. h8=Q {[%clk 0:01:21]}  Qxf6+ {[%clk 0:00:08]} 53. Kxf6 {[%clk 0:01:20]}  a1=Q+ {[%clk 0:00:09]} 54. Ke6 {[%clk 0:01:20]}  Qxh8 {[%clk 0:00:10]} 55. Bd5 {[%clk 0:01:17]}  Qc8+ {[%clk 0:00:09]} 56. Ke5 {[%clk 0:01:17]}  Qb8+ {[%clk 0:00:09]} 57. Ke6 {[%clk 0:01:16]}  b3 {[%clk 0:00:09]} 58. Rg4 {[%clk 0:01:13]}  b2 {[%clk 0:00:09]} 59. Be4 {[%clk 0:01:12]}  Qb6+ {[%clk 0:00:08]} 60. Kf5 {[%clk 0:01:12]}  Kxe2 {[%clk 0:00:08]} 61. Kg5 {[%clk 0:01:10]}  Kf2 {[%clk 0:00:07]} 62. f4 {[%clk 0:01:09]}  Qc5+ {[%clk 0:00:07]} 63. f5 {[%clk 0:01:09]}  Qe5 {[%clk 0:00:06]} 64. Kg6 {[%clk 0:01:09]}  Qxe4 {[%clk 0:00:05]} 65. Rxe4 {[%clk 0:01:09]}  b1=Q {[%clk 0:00:06]} 66. Re6 {[%clk 0:01:07]}  Kf3 {[%clk 0:00:06]} 67. Kg5 {[%clk 0:01:07]}  Qg1+ {[%clk 0:00:05]} 68. Kh6 {[%clk 0:01:04]}  Kf4 {[%clk 0:00:06]} 69. f6 {[%clk 0:01:03]}  Qg5+ {[%clk 0:00:05]} 70. Kh7 {[%clk 0:01:03]}  Qf5+ {[%clk 0:00:06]} 71. Kg7 {[%clk 0:01:03]}  Qxe6 {[%clk 0:00:07]} 72. f7 {[%clk 0:01:04]}  Qe7 {[%clk 0:00:07]} 73. Kg8 {[%clk 0:01:04]}  Qg5+ {[%clk 0:00:07]} 74. Kh8 {[%clk 0:01:03]}  Qh5+ {[%clk 0:00:08]} 75. Kg8 {[%clk 0:01:04]}  Qg6+ {[%clk 0:00:08]} 76. Kh8 {[%clk 0:01:04]}  Kg5 {[%clk 0:00:07]} 77. f8=Q {[%clk 0:01:04]}  Qf6+ {[%clk 0:00:08]} 78. Qg7+ {[%clk 0:01:04]}  Qxg7+ {[%clk 0:00:08]} 79. Kxg7 {[%clk 0:01:05]} 1/2-1/2


[Site "https://www.chess.com"]

[Event "Titled Tuesday Blitz February 22 Late 2022"]
[White "Prohorov, Olexandr"]
[Black "Karas, Marek"]
[WhiteFideId "14105578"]
[BlackFideId "14928558"]
[WhiteElo "1993"]
[BlackElo "2270"]
[Result "0-1"]
[Round "02"]
[TimeControl "180+1"]
[Date "2022.02.23"]
[WhiteClock "0:00:42"]
[BlackClock "0:01:11"]

1. e4 {[%clk 0:03:00]}  g6 {[%clk 0:02:59]} 2. d4 {[%clk 0:02:59]}  Bg7 {[%clk 0:03:00]} 3. Nc3 {[%clk 0:02:59]}  d6 {[%clk 0:03:01]} 4. Nf3 {[%clk 0:02:55]}  a6 {[%clk 0:03:00]} 5. a4 {[%clk 0:02:55]}  b6 {[%clk 0:03:00]} 6. Bd3 {[%clk 0:02:52]}  Bb7 {[%clk 0:03:00]} 7. Qe2 {[%clk 0:02:52]}  e6 {[%clk 0:03:01]} 8. O-O {[%clk 0:02:53]}  Ne7 {[%clk 0:03:02]} 9. h3 {[%clk 0:02:52]}  h6 {[%clk 0:03:02]} 10. Rd1 {[%clk 0:02:50]}  Nd7 {[%clk 0:03:02]} 11. b3 {[%clk 0:02:48]}  g5 {[%clk 0:03:02]} 12. Bb2 {[%clk 0:02:47]}  Ng6 {[%clk 0:03:01]} 13. g3 {[%clk 0:02:46]}  Qe7 {[%clk 0:02:55]} 14. Na2 {[%clk 0:02:32]}  e5 {[%clk 0:02:48]} 15. c4 {[%clk 0:02:27]}  h5 {[%clk 0:02:46]} 16. Nb4 {[%clk 0:02:16]}  g4 {[%clk 0:02:40]} 17. hxg4 {[%clk 0:02:15]}  hxg4 {[%clk 0:02:41]} 18. Ne1 {[%clk 0:02:14]}  exd4 {[%clk 0:02:41]} 19. Nd5 {[%clk 0:02:12]}  Bxd5 {[%clk 0:02:40]} 20. exd5 {[%clk 0:02:13]}  Nde5 {[%clk 0:02:33]} 21. Bxg6 {[%clk 0:02:07]}  fxg6 {[%clk 0:02:28]} 22. Qd2 {[%clk 0:01:46]}  O-O-O {[%clk 0:02:01]} 23. Bxd4 {[%clk 0:01:41]}  Rh5 {[%clk 0:01:43]} 24. Bxe5 {[%clk 0:01:37]}  Bxe5 {[%clk 0:01:35]} 25. Qe2 {[%clk 0:01:21]}  Qd7 {[%clk 0:01:31]} 26. f4 {[%clk 0:01:10]}  Bxa1 {[%clk 0:01:28]} 27. Rxa1 {[%clk 0:01:08]}  Rdh8 {[%clk 0:01:28]} 28. Qg2 {[%clk 0:00:56]}  Rh1+ {[%clk 0:01:27]} 29. Qxh1 {[%clk 0:00:56]}  Rxh1+ {[%clk 0:01:28]} 30. Kxh1 {[%clk 0:00:57]}  Qf5 {[%clk 0:01:26]} 31. Ng2 {[%clk 0:00:55]}  Qd3 {[%clk 0:01:24]} 32. Kh2 {[%clk 0:00:54]}  Qxb3 {[%clk 0:01:24]} 33. Re1 {[%clk 0:00:54]}  Qxc4 {[%clk 0:01:23]} 34. Re6 {[%clk 0:00:54]}  Qxd5 {[%clk 0:01:22]} 35. Rxg6 {[%clk 0:00:54]}  b5 {[%clk 0:01:22]} 36. axb5 {[%clk 0:00:52]}  axb5 {[%clk 0:01:23]} 37. Rxg4 {[%clk 0:00:53]}  b4 {[%clk 0:01:22]} 38. Rg5 {[%clk 0:00:53]}  Qe4 {[%clk 0:01:21]} 39. f5 {[%clk 0:00:52]}  b3 {[%clk 0:01:21]} 40. f6 {[%clk 0:00:51]}  Kb7 {[%clk 0:01:19]} 41. Nf4 {[%clk 0:00:46]}  b2 {[%clk 0:01:18]} 42. f7 {[%clk 0:00:46]}  Qh7+ {[%clk 0:01:17]} 43. Kg2 {[%clk 0:00:43]}  b1=Q {[%clk 0:01:15]} 44. Rb5+ {[%clk 0:00:44]}  Qxb5 {[%clk 0:01:15]} 45. f8=Q {[%clk 0:00:45]}  Qc6+ {[%clk 0:01:13]} 46. Kf2 {[%clk 0:00:43]}  Qh2+ {[%clk 0:01:13]} 47. Ke3 {[%clk 0:00:43]}  Qxg3+ {[%clk 0:01:12]} 48. Kd4 {[%clk 0:00:42]}  Qgc3# {[%clk 0:01:11]} 0-1


[Site "https://www.chess.com"]

[Event "Titled Tuesday Blitz February 22 Late 2022"]
[White "Romero Ruscalleda, Josep"]
[Black "Maltsevskaya, Aleksandra"]
[WhiteFideId "2231859"]
[BlackFideId "24174041"]
[WhiteElo "2371"]
[BlackElo "2283"]
[Result "0-1"]
[Round "02"]
[TimeControl "180+1"]
[Date "2022.02.23"]
[WhiteClock "0:00:07"]
[BlackClock "0:00:46"]

1. e4 {[%clk 0:03:00]}  c5 {[%clk 0:02:59]} 2. c3 {[%clk 0:03:00]}  e6 {[%clk 0:03:00]} 3. d4 {[%clk 0:02:59]}  d5 {[%clk 0:03:01]} 4. e5 {[%clk 0:02:59]}  Nc6 {[%clk 0:03:01]} 5. Be3 {[%clk 0:02:59]}  h5 {[%clk 0:03:01]} 6. Nf3 {[%clk 0:02:55]}  Nge7 {[%clk 0:03:01]} 7. Bd3 {[%clk 0:02:49]}  g6 {[%clk 0:03:02]} 8. dxc5 {[%clk 0:02:46]}  Nf5 {[%clk 0:03:02]} 9. Bxf5 {[%clk 0:02:46]}  gxf5 {[%clk 0:03:02]} 10. b4 {[%clk 0:02:45]}  Rg8 {[%clk 0:02:58]} 11. g3 {[%clk 0:02:42]}  a5 {[%clk 0:02:55]} 12. b5 {[%clk 0:02:38]}  Nb8 {[%clk 0:02:50]} 13. Nd4 {[%clk 0:02:26]}  Qc7 {[%clk 0:02:45]} 14. Qxh5 {[%clk 0:02:20]}  Bxc5 {[%clk 0:02:40]} 15. a4 {[%clk 0:02:06]}  Qxe5 {[%clk 0:02:00]} 16. Nd2 {[%clk 0:02:06]}  Nd7 {[%clk 0:01:51]} 17. N2f3 {[%clk 0:02:05]}  Qe4 {[%clk 0:01:36]} 18. O-O {[%clk 0:01:50]}  Qg4 {[%clk 0:01:24]} 19. Qxg4 {[%clk 0:01:17]}  fxg4 {[%clk 0:01:25]} 20. Nd2 {[%clk 0:01:15]}  Ne5 {[%clk 0:01:10]} 21. N2b3 {[%clk 0:01:14]}  Be7 {[%clk 0:01:08]} 22. Kg2 {[%clk 0:01:10]}  Bd7 {[%clk 0:01:05]} 23. Rfe1 {[%clk 0:01:02]}  Nc4 {[%clk 0:01:03]} 24. Bf4 {[%clk 0:00:59]}  Rc8 {[%clk 0:01:01]} 25. Rad1 {[%clk 0:00:54]}  Nb2 {[%clk 0:00:59]} 26. Rd2 {[%clk 0:00:48]}  Nxa4 {[%clk 0:00:59]} 27. Nxa5 {[%clk 0:00:43]}  Nxc3 {[%clk 0:00:59]} 28. Nxb7 {[%clk 0:00:42]}  Ne4 {[%clk 0:00:57]} 29. Rb2 {[%clk 0:00:33]}  f6 {[%clk 0:00:55]} 30. f3 {[%clk 0:00:24]}  gxf3+ {[%clk 0:00:53]} 31. Nxf3 {[%clk 0:00:25]}  Kf7 {[%clk 0:00:49]} 32. Be3 {[%clk 0:00:19]}  Rb8 {[%clk 0:00:47]} 33. Na5 {[%clk 0:00:16]}  Bxb5 {[%clk 0:00:47]} 34. Reb1 {[%clk 0:00:16]}  Nc3 {[%clk 0:00:45]} 35. Nc6 {[%clk 0:00:11]}  Nxb1 {[%clk 0:00:44]} 36. Nxb8 {[%clk 0:00:09]}  Rxb8 {[%clk 0:00:45]} 37. Rxb1 {[%clk 0:00:09]}  e5 {[%clk 0:00:45]} 38. Bd2 {[%clk 0:00:08]}  d4 {[%clk 0:00:45]} 39. Nh4 {[%clk 0:00:07]}  Bc6+ {[%clk 0:00:45]} 40. Kh3 {[%clk 0:00:07]}  Rxb1 {[%clk 0:00:46]} 0-1


[Site "https://www.chess.com"]

[Event "Titled Tuesday Blitz February 22 Late 2022"]
[White "Roque Sola, Gisela"]
[Black "Bettalli, Francesco"]
[WhiteFideId "5120241"]
[BlackFideId "2816453"]
[WhiteElo "1863"]
[BlackElo "2216"]
[Result "1-0"]
[Round "02"]
[TimeControl "180+1"]
[Date "2022.02.23"]
[WhiteClock "0:02:33"]
[BlackClock "0:01:37"]

1. e4 {[%clk 0:03:00]}  e5 {[%clk 0:02:58]} 2. Nf3 {[%clk 0:02:59]}  Nf6 {[%clk 0:02:57]} 3. Nxe5 {[%clk 0:02:58]}  Nc6 {[%clk 0:02:49]} 4. Nxc6 {[%clk 0:02:55]}  dxc6 {[%clk 0:02:50]} 5. Nc3 {[%clk 0:02:55]}  Bc5 {[%clk 0:02:49]} 6. Be2 {[%clk 0:02:52]}  h5 {[%clk 0:02:48]} 7. d3 {[%clk 0:02:52]}  Ng4 {[%clk 0:02:36]} 8. Bxg4 {[%clk 0:02:46]}  hxg4 {[%clk 0:02:35]} 9. Qe2 {[%clk 0:02:44]}  Qd4 {[%clk 0:02:24]} 10. Be3 {[%clk 0:02:41]}  Qb4 {[%clk 0:02:20]} 11. Bxc5 {[%clk 0:02:41]}  Qxb2 {[%clk 0:02:20]} 12. Kd2 {[%clk 0:02:38]}  Rxh2 {[%clk 0:01:41]} 13. Rxh2 {[%clk 0:02:34]}  Qxa1 {[%clk 0:01:39]} 14. Rh8+ {[%clk 0:02:33]}  Kd7 {[%clk 0:01:37]} 15. Qxg4+ {[%clk 0:02:33]} 1-0


[Site "https://www.chess.com"]